[Event "Titled Tuesday Blitz January 03 Early 2023"]
[White "Grigoriants, Sergey"]
[Black "Jobava, Baadur"]
[WhiteFideId "4130804"]
[BlackFideId "13601520"]
[WhiteElo "2562"]
[BlackElo "2578"]
[Result "1-0"]
[Round "07"]
[TimeControl "180+2"]
[Date "2023.01.03"]
[WhiteClock "0:00:04"]
[BlackClock "0:00:18"]

1. c4 {[%clk 0:02:49]}  e5 {[%clk 0:02:53]} 2. Nc3 {[%clk 0:02:46]}  d6 {[%clk 0:02:53]} 3. g3 {[%clk 0:02:41]}  c6 {[%clk 0:02:53]} 4. Bg2 {[%clk 0:02:40]}  f5 {[%clk 0:02:53]} 5. d3 {[%clk 0:02:35]}  Nf6 {[%clk 0:02:51]} 6. Nf3 {[%clk 0:02:33]}  Be7 {[%clk 0:02:52]} 7. O-O {[%clk 0:02:32]}  O-O {[%clk 0:02:51]} 8. b4 {[%clk 0:02:32]}  Kh8 {[%clk 0:02:51]} 9. b5 {[%clk 0:02:33]}  c5 {[%clk 0:02:50]} 10. a4 {[%clk 0:02:31]}  Nbd7 {[%clk 0:02:49]} 11. a5 {[%clk 0:02:31]}  Rb8 {[%clk 0:02:49]} 12. Ng5 {[%clk 0:02:23]}  Qe8 {[%clk 0:02:38]} 13. Ne6 {[%clk 0:02:02]}  Rg8 {[%clk 0:02:37]} 14. a6 {[%clk 0:01:56]}  b6 {[%clk 0:02:32]} 15. f4 {[%clk 0:01:48]}  Nf8 {[%clk 0:02:19]} 16. Nc7 {[%clk 0:01:41]}  Qd8 {[%clk 0:02:17]} 17. N7d5 {[%clk 0:01:40]}  Ng6 {[%clk 0:02:15]} 18. Bb2 {[%clk 0:01:31]}  Rf8 {[%clk 0:02:12]} 19. Nxf6 {[%clk 0:01:27]}  Bxf6 {[%clk 0:02:11]} 20. Nd5 {[%clk 0:01:28]}  Be6 {[%clk 0:02:09]} 21. Nxf6 {[%clk 0:01:23]}  gxf6 {[%clk 0:02:08]} 22. e4 {[%clk 0:01:14]}  Qd7 {[%clk 0:02:03]} 23. Qh5 {[%clk 0:01:11]}  Ne7 {[%clk 0:01:56]} 24. Rf2 {[%clk 0:01:02]}  Rg8 {[%clk 0:01:33]} 25. Raf1 {[%clk 0:01:01]}  Rg7 {[%clk 0:01:30]} 26. exf5 {[%clk 0:00:52]}  Bf7 {[%clk 0:01:25]} 27. Qh4 {[%clk 0:00:39]}  Ng8 {[%clk 0:01:22]} 28. g4 {[%clk 0:00:30]}  Re8 {[%clk 0:01:07]} 29. Kh1 {[%clk 0:00:29]}  d5 {[%clk 0:01:03]} 30. fxe5 {[%clk 0:00:27]}  fxe5 {[%clk 0:01:04]} 31. g5 {[%clk 0:00:27]}  dxc4 {[%clk 0:01:01]} 32. dxc4 {[%clk 0:00:24]}  Qd3 {[%clk 0:01:00]} 33. g6 {[%clk 0:00:18]}  Qxc4 {[%clk 0:00:59]} 34. gxf7 {[%clk 0:00:13]}  Qxf7 {[%clk 0:01:00]} 35. Re1 {[%clk 0:00:10]}  Qb3 {[%clk 0:00:52]} 36. Bxe5 {[%clk 0:00:06]}  Rxe5 {[%clk 0:00:48]} 37. Rxe5 {[%clk 0:00:07]}  Qc3 {[%clk 0:00:45]} 38. Ree2 {[%clk 0:00:06]}  Nf6 {[%clk 0:00:44]} 39. Rf1 {[%clk 0:00:06]}  h5 {[%clk 0:00:38]} 40. Qf4 {[%clk 0:00:06]}  Kh7 {[%clk 0:00:38]} 41. h3 {[%clk 0:00:05]}  Qd3 {[%clk 0:00:31]} 42. Re6 {[%clk 0:00:05]}  Qc2 {[%clk 0:00:28]} 43. Rf2 {[%clk 0:00:06]}  Qb1+ {[%clk 0:00:26]} 44. Kh2 {[%clk 0:00:06]}  Qa1 {[%clk 0:00:24]} 45. Qe5 {[%clk 0:00:05]}  Qa3 {[%clk 0:00:20]} 46. Rxf6 {[%clk 0:00:04]}  h4 {[%clk 0:00:18]} 47. Rg6 {[%clk 0:00:04]} 1-0


[Site "https://www.chess.com"]

[Event "Titled Tuesday Blitz January 03 Early 2023"]
[White "Jones, Gawain C B"]
[Black "Bluebaum, Matthias"]
[WhiteFideId "409561"]
[BlackFideId "24651516"]
[WhiteElo "2618"]
[BlackElo "2669"]
[Result "1-0"]
[Round "07"]
[TimeControl "180+2"]
[Date "2023.01.03"]
[WhiteClock "0:00:06"]
[BlackClock "0:00:04"]

1. Nf3 {[%clk 0:02:50]}  d5 {[%clk 0:02:59]} 2. b3 {[%clk 0:02:51]}  c5 {[%clk 0:02:58]} 3. g3 {[%clk 0:02:49]}  Nc6 {[%clk 0:02:58]} 4. Bb2 {[%clk 0:02:47]}  d4 {[%clk 0:02:58]} 5. Bg2 {[%clk 0:02:47]}  g6 {[%clk 0:02:58]} 6. e3 {[%clk 0:02:47]}  Bg7 {[%clk 0:02:58]} 7. O-O {[%clk 0:02:48]}  Nh6 {[%clk 0:02:59]} 8. d3 {[%clk 0:02:48]}  O-O {[%clk 0:02:57]} 9. a4 {[%clk 0:02:48]}  dxe3 {[%clk 0:02:53]} 10. Bxg7 {[%clk 0:02:48]}  exf2+ {[%clk 0:02:54]} 11. Rxf2 {[%clk 0:02:48]}  Kxg7 {[%clk 0:02:55]} 12. Qe1 {[%clk 0:02:39]}  f6 {[%clk 0:02:16]} 13. Qc3 {[%clk 0:02:32]}  Qd6 {[%clk 0:02:14]} 14. Nbd2 {[%clk 0:02:28]}  e5 {[%clk 0:02:14]} 15. Ne4 {[%clk 0:02:28]}  Qe7 {[%clk 0:02:13]} 16. Qxc5 {[%clk 0:02:25]}  Qxc5 {[%clk 0:02:08]} 17. Nxc5 {[%clk 0:02:26]}  b6 {[%clk 0:02:08]} 18. Nd2 {[%clk 0:02:02]}  bxc5 {[%clk 0:01:57]} 19. Bxc6 {[%clk 0:02:02]}  Rb8 {[%clk 0:01:57]} 20. Ne4 {[%clk 0:01:55]}  Bh3 {[%clk 0:01:45]} 21. Nxc5 {[%clk 0:01:30]}  Rbc8 {[%clk 0:01:43]} 22. Bg2 {[%clk 0:01:25]}  Bxg2 {[%clk 0:00:47]} 23. Ne6+ {[%clk 0:01:25]}  Kf7 {[%clk 0:00:47]} 24. Nxf8 {[%clk 0:01:24]}  Ba8 {[%clk 0:00:48]} 25. Nxh7 {[%clk 0:01:15]}  Ng4 {[%clk 0:00:48]} 26. Raf1 {[%clk 0:00:52]}  Nxf2 {[%clk 0:00:31]} 27. Rxf2 {[%clk 0:00:53]}  f5 {[%clk 0:00:32]} 28. Ng5+ {[%clk 0:00:52]}  Kf6 {[%clk 0:00:32]} 29. h4 {[%clk 0:00:49]}  a5 {[%clk 0:00:30]} 30. Kf1 {[%clk 0:00:46]}  Ke7 {[%clk 0:00:28]} 31. Ke1 {[%clk 0:00:45]}  Rd8 {[%clk 0:00:24]} 32. Re2 {[%clk 0:00:43]}  Kf6 {[%clk 0:00:19]} 33. Nh7+ {[%clk 0:00:40]}  Kg7 {[%clk 0:00:19]} 34. Ng5 {[%clk 0:00:40]}  Kf6 {[%clk 0:00:20]} 35. Kd2 {[%clk 0:00:31]}  Rd7 {[%clk 0:00:16]} 36. Ke3 {[%clk 0:00:24]}  Bc6 {[%clk 0:00:17]} 37. c3 {[%clk 0:00:19]}  Rb7 {[%clk 0:00:16]} 38. Rb2 {[%clk 0:00:14]}  Bxa4 {[%clk 0:00:16]} 39. Ra2 {[%clk 0:00:13]}  Bxb3 {[%clk 0:00:16]} 40. Rxa5 {[%clk 0:00:13]}  Bg8 {[%clk 0:00:14]} 41. Ra6+ {[%clk 0:00:12]}  Kg7 {[%clk 0:00:15]} 42. Ne6+ {[%clk 0:00:12]}  Kh6 {[%clk 0:00:10]} 43. c4 {[%clk 0:00:09]}  Rb3 {[%clk 0:00:08]} 44. Nc5 {[%clk 0:00:08]}  Rb1 {[%clk 0:00:08]} 45. Nd7 {[%clk 0:00:07]}  e4 {[%clk 0:00:05]} 46. Nf6 {[%clk 0:00:07]}  Bf7 {[%clk 0:00:04]} 47. Ra7 {[%clk 0:00:06]}  Be6 {[%clk 0:00:04]} 48. Rh7# {[%clk 0:00:06]} 1-0


[Site "https://www.chess.com"]

[Event "Titled Tuesday Blitz January 03 Early 2023"]
[White "Ter-Sahakyan, Samvel"]
[Black "Xiong, Jeffery"]
[WhiteFideId "13302531"]
[BlackFideId "2047640"]
[WhiteElo "2617"]
[BlackElo "2692"]
[Result "0-1"]
[Round "07"]
[TimeControl "180+2"]
[Date "2023.01.03"]
[WhiteClock "0:00:03"]
[BlackClock "0:00:32"]

1. d4 {[%clk 0:03:00]}  d5 {[%clk 0:02:59]} 2. c4 {[%clk 0:03:00]}  dxc4 {[%clk 0:03:00]} 3. e4 {[%clk 0:02:59]}  e5 {[%clk 0:02:46]} 4. Nf3 {[%clk 0:02:58]}  Nf6 {[%clk 0:02:38]} 5. Nc3 {[%clk 0:02:55]}  exd4 {[%clk 0:02:35]} 6. Nxd4 {[%clk 0:02:53]}  Bc5 {[%clk 0:02:21]} 7. Be3 {[%clk 0:02:36]}  Ng4 {[%clk 0:02:10]} 8. Qa4+ {[%clk 0:01:29]}  Qd7 {[%clk 0:01:42]} 9. Qxc4 {[%clk 0:01:04]}  Nxe3 {[%clk 0:01:40]} 10. fxe3 {[%clk 0:01:03]}  Bd6 {[%clk 0:01:30]} 11. O-O-O {[%clk 0:01:02]}  Nc6 {[%clk 0:01:26]} 12. Nf5 {[%clk 0:00:32]}  O-O {[%clk 0:01:25]} 13. Qb3 {[%clk 0:00:29]}  Qe8 {[%clk 0:01:22]} 14. Nxd6 {[%clk 0:00:27]}  cxd6 {[%clk 0:01:23]} 15. Rxd6 {[%clk 0:00:27]}  Be6 {[%clk 0:01:22]} 16. Qxb7 {[%clk 0:00:23]}  Ne5 {[%clk 0:01:17]} 17. Bb5 {[%clk 0:00:22]}  Rb8 {[%clk 0:01:11]} 18. Qa6 {[%clk 0:00:16]}  Qe7 {[%clk 0:01:09]} 19. Rhd1 {[%clk 0:00:15]}  Qg5 {[%clk 0:01:09]} 20. Qxa7 {[%clk 0:00:14]}  Rxb5 {[%clk 0:00:53]} 21. Nxb5 {[%clk 0:00:13]}  Nc4 {[%clk 0:00:53]} 22. a4 {[%clk 0:00:07]}  Qxg2 {[%clk 0:00:52]} 23. Qd4 {[%clk 0:00:06]}  Nxd6 {[%clk 0:00:53]} 24. Qxd6 {[%clk 0:00:06]}  Qxe4 {[%clk 0:00:52]} 25. Qd4 {[%clk 0:00:06]}  Qa8 {[%clk 0:00:41]} 26. Nc3 {[%clk 0:00:05]}  Bb3 {[%clk 0:00:41]} 27. Rg1 {[%clk 0:00:05]}  g6 {[%clk 0:00:38]} 28. Ne4 {[%clk 0:00:05]}  Rc8+ {[%clk 0:00:38]} 29. Kd2 {[%clk 0:00:05]}  Rc2+ {[%clk 0:00:34]} 30. Ke1 {[%clk 0:00:03]}  Qa5+ {[%clk 0:00:34]} 31. Kf1 {[%clk 0:00:03]}  Bc4+ {[%clk 0:00:32]} 0-1


[Site "https://www.chess.com"]

[Event "Titled Tuesday Blitz January 03 Early 2023"]
[White "Sanal, Vahap"]
[Black "Bortnyk, Mykola"]
[WhiteFideId "6300545"]
[BlackFideId "14120836"]
[WhiteElo "2600"]
[BlackElo "2425"]
[Result "1-0"]
[Round "07"]
[TimeControl "180+2"]
[Date "2023.01.03"]
[WhiteClock "0:00:35"]
[BlackClock "0:00:24"]

1. e4 {[%clk 0:03:00]}  Nf6 {[%clk 0:03:00]} 2. Nc3 {[%clk 0:02:59]}  d5 {[%clk 0:03:00]} 3. e5 {[%clk 0:02:56]}  Nfd7 {[%clk 0:03:00]} 4. f4 {[%clk 0:02:56]}  c5 {[%clk 0:03:00]} 5. Nf3 {[%clk 0:02:57]}  Nc6 {[%clk 0:03:00]} 6. Be2 {[%clk 0:02:53]}  Nb6 {[%clk 0:02:47]} 7. O-O {[%clk 0:02:53]}  Bg4 {[%clk 0:02:46]} 8. d3 {[%clk 0:02:52]}  e6 {[%clk 0:02:44]} 9. Kh1 {[%clk 0:02:52]}  Be7 {[%clk 0:02:44]} 10. Qe1 {[%clk 0:02:49]}  h5 {[%clk 0:02:34]} 11. a3 {[%clk 0:02:43]}  a6 {[%clk 0:02:26]} 12. Nd1 {[%clk 0:02:37]}  h4 {[%clk 0:02:19]} 13. Ne3 {[%clk 0:02:35]}  Bxf3 {[%clk 0:02:17]} 14. Bxf3 {[%clk 0:02:35]}  Nd4 {[%clk 0:02:17]} 15. Bd1 {[%clk 0:02:34]}  g6 {[%clk 0:02:17]} 16. c3 {[%clk 0:02:34]}  Nf5 {[%clk 0:02:17]} 17. Nxf5 {[%clk 0:02:21]}  gxf5 {[%clk 0:02:17]} 18. Bf3 {[%clk 0:02:22]}  Qc7 {[%clk 0:02:17]} 19. Be3 {[%clk 0:02:15]}  O-O-O {[%clk 0:02:14]} 20. Qf2 {[%clk 0:02:12]}  Kb8 {[%clk 0:02:06]} 21. b4 {[%clk 0:02:10]}  Nd7 {[%clk 0:02:05]} 22. c4 {[%clk 0:02:07]}  d4 {[%clk 0:01:59]} 23. Bd2 {[%clk 0:02:06]}  b6 {[%clk 0:01:57]} 24. Rfb1 {[%clk 0:02:01]}  Ka7 {[%clk 0:01:57]} 25. Qe1 {[%clk 0:01:56]}  Rb8 {[%clk 0:01:50]} 26. Rb2 {[%clk 0:01:52]}  h3 {[%clk 0:01:38]} 27. g3 {[%clk 0:01:52]}  Rh6 {[%clk 0:01:38]} 28. Rab1 {[%clk 0:01:50]}  f6 {[%clk 0:01:39]} 29. b5 {[%clk 0:01:32]}  fxe5 {[%clk 0:01:30]} 30. fxe5 {[%clk 0:01:32]}  Rg6 {[%clk 0:01:20]} 31. Bf4 {[%clk 0:01:12]}  Bg5 {[%clk 0:01:18]} 32. bxa6 {[%clk 0:01:07]}  Bxf4 {[%clk 0:01:14]} 33. gxf4 {[%clk 0:01:08]}  Rbg8 {[%clk 0:01:13]} 34. Qh4 {[%clk 0:01:01]}  Kxa6 {[%clk 0:01:01]} 35. a4 {[%clk 0:00:59]}  Rg4 {[%clk 0:00:42]} 36. Qe7 {[%clk 0:00:48]}  R8g7 {[%clk 0:00:40]} 37. Qxe6 {[%clk 0:00:43]}  Rxf4 {[%clk 0:00:37]} 38. Qd5 {[%clk 0:00:42]}  Rxf3 {[%clk 0:00:30]} 39. Qxf3 {[%clk 0:00:40]}  Nxe5 {[%clk 0:00:27]} 40. Qa8+ {[%clk 0:00:39]}  Qa7 {[%clk 0:00:25]} 41. Rxb6+ {[%clk 0:00:40]}  Ka5 {[%clk 0:00:25]} 42. R6b5+ {[%clk 0:00:37]}  Ka6 {[%clk 0:00:25]} 43. Rb6+ {[%clk 0:00:32]}  Ka5 {[%clk 0:00:25]} 44. R1b5+ {[%clk 0:00:33]}  Kxa4 {[%clk 0:00:25]} 45. Ra6+ {[%clk 0:00:34]}  Qxa6 {[%clk 0:00:24]} 46. Qxa6# {[%clk 0:00:35]} 1-0


[Site "https://www.chess.com"]

[Event "Titled Tuesday Blitz January 03 Early 2023"]
[White "Tactrics"]
[Black "Vokhidov, Shamsiddin"]
[BlackFideId "14204223"]
[WhiteElo "2846"]
[BlackElo "2586"]
[Result "0-1"]
[Round "07"]
[TimeControl "180+2"]
[Date "2023.01.03"]
[WhiteClock "0:00:04"]
[BlackClock "0:00:07"]

1. e4 {[%clk 0:03:00]}  Nf6 {[%clk 0:03:00]} 2. Nc3 {[%clk 0:03:01]}  d5 {[%clk 0:03:00]} 3. exd5 {[%clk 0:03:01]}  Nxd5 {[%clk 0:03:01]} 4. g3 {[%clk 0:03:02]}  Nxc3 {[%clk 0:03:01]} 5. bxc3 {[%clk 0:03:03]}  g6 {[%clk 0:03:01]} 6. Bg2 {[%clk 0:03:03]}  Bg7 {[%clk 0:03:02]} 7. Ne2 {[%clk 0:03:03]}  O-O {[%clk 0:03:02]} 8. d3 {[%clk 0:03:04]}  c5 {[%clk 0:03:02]} 9. Rb1 {[%clk 0:03:04]}  Nc6 {[%clk 0:03:02]} 10. O-O {[%clk 0:03:05]}  Qd7 {[%clk 0:03:02]} 11. h3 {[%clk 0:03:05]}  b6 {[%clk 0:03:02]} 12. Be3 {[%clk 0:02:59]}  Bb7 {[%clk 0:03:02]} 13. Qd2 {[%clk 0:02:59]}  Rfd8 {[%clk 0:03:01]} 14. Bh6 {[%clk 0:02:58]}  Ne5 {[%clk 0:03:01]} 15. Bxg7 {[%clk 0:02:50]}  Kxg7 {[%clk 0:03:02]} 16. Qe3 {[%clk 0:02:45]}  Bxg2 {[%clk 0:03:02]} 17. Kxg2 {[%clk 0:02:45]}  Nc6 {[%clk 0:02:57]} 18. c4 {[%clk 0:02:39]}  e6 {[%clk 0:02:52]} 19. a3 {[%clk 0:02:36]}  Qe7 {[%clk 0:02:51]} 20. Qe4 {[%clk 0:02:32]}  Rd6 {[%clk 0:02:49]} 21. Nc3 {[%clk 0:02:29]}  Rc8 {[%clk 0:02:47]} 22. Nb5 {[%clk 0:02:27]}  Rd7 {[%clk 0:02:47]} 23. h4 {[%clk 0:02:25]}  Qf6 {[%clk 0:02:47]} 24. Qe1 {[%clk 0:02:11]}  Ne5 {[%clk 0:02:39]} 25. f4 {[%clk 0:02:04]}  Ng4 {[%clk 0:02:33]} 26. Nc3 {[%clk 0:02:04]}  Qd4 {[%clk 0:02:27]} 27. Rf3 {[%clk 0:02:04]}  Re8 {[%clk 0:02:25]} 28. Ne4 {[%clk 0:02:00]}  h6 {[%clk 0:02:23]} 29. c3 {[%clk 0:02:00]}  Qxd3 {[%clk 0:02:10]} 30. Rxd3 {[%clk 0:02:01]}  Rxd3 {[%clk 0:02:11]} 31. Nf2 {[%clk 0:02:02]}  Nxf2 {[%clk 0:01:53]} 32. Kxf2 {[%clk 0:01:56]}  Red8 {[%clk 0:01:53]} 33. Qe5+ {[%clk 0:01:52]}  Kg8 {[%clk 0:01:52]} 34. Re1 {[%clk 0:01:50]}  h5 {[%clk 0:01:51]} 35. Re3 {[%clk 0:01:46]}  Rd2+ {[%clk 0:01:51]} 36. Kf3 {[%clk 0:01:47]}  Rd1 {[%clk 0:01:51]} 37. Qf6 {[%clk 0:01:44]}  Rf1+ {[%clk 0:01:50]} 38. Kg2 {[%clk 0:01:39]}  Rdd1 {[%clk 0:01:49]} 39. Re2 {[%clk 0:01:37]}  Rg1+ {[%clk 0:01:49]} 40. Kf3 {[%clk 0:01:32]}  Rdf1+ {[%clk 0:01:44]} 41. Rf2 {[%clk 0:01:31]}  Rd1 {[%clk 0:01:43]} 42. f5 {[%clk 0:01:25]}  exf5 {[%clk 0:01:34]} 43. Kf4 {[%clk 0:01:25]}  Rge1 {[%clk 0:01:24]} 44. Qc6 {[%clk 0:01:04]}  Rd3 {[%clk 0:01:17]} 45. Rf3 {[%clk 0:00:52]}  Re4+ {[%clk 0:01:05]} 46. Kg5 {[%clk 0:00:51]}  Rxf3 {[%clk 0:00:57]} 47. Kh6 {[%clk 0:00:52]}  Rfe3 {[%clk 0:00:42]} 48. Qa8+ {[%clk 0:00:31]}  Re8 {[%clk 0:00:41]} 49. Qxa7 {[%clk 0:00:30]}  R3e6 {[%clk 0:00:41]} 50. a4 {[%clk 0:00:25]}  Rd8 {[%clk 0:00:38]} 51. a5 {[%clk 0:00:22]}  bxa5 {[%clk 0:00:39]} 52. Qxa5 {[%clk 0:00:20]}  Rc8 {[%clk 0:00:38]} 53. Qb5 {[%clk 0:00:19]}  Rd6 {[%clk 0:00:32]} 54. Qb7 {[%clk 0:00:18]}  Rdc6 {[%clk 0:00:28]} 55. Qe7 {[%clk 0:00:18]}  Re6 {[%clk 0:00:27]} 56. Qd7 {[%clk 0:00:18]}  Ree8 {[%clk 0:00:18]} 57. Qd6 {[%clk 0:00:17]}  Re6 {[%clk 0:00:17]} 58. Qd7 {[%clk 0:00:17]}  Rce8 {[%clk 0:00:11]} 59. Qc7 {[%clk 0:00:16]}  Re3 {[%clk 0:00:07]} 60. Qxc5 {[%clk 0:00:13]}  R3e5 {[%clk 0:00:04]} 61. Qd4 {[%clk 0:00:12]}  Kf8 {[%clk 0:00:03]} 62. Qd6+ {[%clk 0:00:12]}  R5e7 {[%clk 0:00:02]} 63. c5 {[%clk 0:00:11]}  Rc8 {[%clk 0:00:02]} 64. Kg5 {[%clk 0:00:09]}  Ke8 {[%clk 0:00:02]} 65. c6 {[%clk 0:00:04]}  Rec7 {[%clk 0:00:01]} 66. Qe5+ {[%clk 0:00:04]}  Kf8 {[%clk 0:00:01]} 67. Qd6+ {[%clk 0:00:02]}  Kg8 {[%clk 0:00:01]} 68. Kh6 {[%clk 0:00:02]}  Rxc6 {[%clk 0:00:01]} 69. Qd4 {[%clk 0:00:03]}  Kf8 {[%clk 0:00:02]} 70. Qg7+ {[%clk 0:00:03]}  Ke7 {[%clk 0:00:03]} 71. Qe5+ {[%clk 0:00:03]}  Re6 {[%clk 0:00:03]} 72. Qd4 {[%clk 0:00:04]}  Re4 {[%clk 0:00:03]} 73. Qa7+ {[%clk 0:00:03]}  Ke8 {[%clk 0:00:03]} 74. Kg7 {[%clk 0:00:03]}  Re7 {[%clk 0:00:01]} 75. Qa4+ {[%clk 0:00:04]}  Kd8 {[%clk 0:00:02]} 76. Kf6 {[%clk 0:00:03]}  Rd7 {[%clk 0:00:02]} 77. Qa5+ {[%clk 0:00:02]}  Ke8 {[%clk 0:00:03]} 78. Qe5+ {[%clk 0:00:03]}  Kd8 {[%clk 0:00:03]} 79. Qa5+ {[%clk 0:00:03]}  Ke8 {[%clk 0:00:04]} 80. Kg7 {[%clk 0:00:04]}  Ke7 {[%clk 0:00:03]} 81. Qe5+ {[%clk 0:00:04]}  Kd8 {[%clk 0:00:04]} 82. c4 {[%clk 0:00:03]}  Rxc4 {[%clk 0:00:03]} 83. Qa5+ {[%clk 0:00:02]}  Rcc7 {[%clk 0:00:04]} 84. Kf8 {[%clk 0:00:01]}  Rd6 {[%clk 0:00:03]} 85. Qa8+ {[%clk 0:00:01]}  Kd7 {[%clk 0:00:04]} 86. Qa4+ {[%clk 0:00:02]}  Ke6 {[%clk 0:00:04]} 87. Qb3+ {[%clk 0:00:02]}  Ke5 {[%clk 0:00:05]} 88. Qe3+ {[%clk 0:00:03]}  Kd5 {[%clk 0:00:05]} 89. Kg7 {[%clk 0:00:03]}  Re6 {[%clk 0:00:05]} 90. Qf4 {[%clk 0:00:02]}  Rd7 {[%clk 0:00:05]} 91. Qd2+ {[%clk 0:00:03]}  Kc6 {[%clk 0:00:06]} 92. Qc3+ {[%clk 0:00:03]}  Kd6 {[%clk 0:00:06]} 93. Qd4+ {[%clk 0:00:04]}  Ke7 {[%clk 0:00:07]} 94. Qd5 {[%clk 0:00:04]}  Rxd5 {[%clk 0:00:07]} 0-1


[Site "https://www.chess.com"]

[Event "Titled Tuesday Blitz January 03 Early 2023"]
[White "Chigaev, Maksim"]
[Black "Al-Tarboush, Ward"]
[WhiteFideId "4108116"]
[BlackFideId "7601450"]
[WhiteElo "2628"]
[BlackElo "2256"]
[Result "1-0"]
[Round "07"]
[TimeControl "180+2"]
[Date "2023.01.03"]
[WhiteClock "0:00:20"]
[BlackClock "0:00:09"]

1. e4 {[%clk 0:03:00]}  c5 {[%clk 0:02:53]} 2. Nf3 {[%clk 0:03:00]}  Nc6 {[%clk 0:02:53]} 3. Bb5 {[%clk 0:03:00]}  e6 {[%clk 0:02:53]} 4. c3 {[%clk 0:02:59]}  a6 {[%clk 0:02:49]} 5. Bxc6 {[%clk 0:02:58]}  bxc6 {[%clk 0:02:49]} 6. e5 {[%clk 0:02:48]}  Ne7 {[%clk 0:02:48]} 7. O-O {[%clk 0:02:48]}  Ng6 {[%clk 0:02:47]} 8. d4 {[%clk 0:02:45]}  Be7 {[%clk 0:02:47]} 9. dxc5 {[%clk 0:02:42]}  Bxc5 {[%clk 0:02:44]} 10. Nbd2 {[%clk 0:02:43]}  f5 {[%clk 0:02:42]} 11. Nc4 {[%clk 0:02:41]}  O-O {[%clk 0:02:42]} 12. Bg5 {[%clk 0:02:37]}  Qc7 {[%clk 0:02:40]} 13. b4 {[%clk 0:02:38]}  Ba7 {[%clk 0:02:40]} 14. Be3 {[%clk 0:02:21]}  Bxe3 {[%clk 0:02:34]} 15. fxe3 {[%clk 0:02:21]}  a5 {[%clk 0:02:33]} 16. Nxa5 {[%clk 0:02:14]}  Nxe5 {[%clk 0:02:32]} 17. Nxe5 {[%clk 0:02:14]}  Qxe5 {[%clk 0:02:33]} 18. Qd4 {[%clk 0:02:14]}  Qc7 {[%clk 0:02:25]} 19. e4 {[%clk 0:02:13]}  Ba6 {[%clk 0:02:21]} 20. Rf2 {[%clk 0:01:45]}  fxe4 {[%clk 0:02:17]} 21. Rxf8+ {[%clk 0:01:37]}  Rxf8 {[%clk 0:02:17]} 22. Qxe4 {[%clk 0:01:38]}  Qb6+ {[%clk 0:02:13]} 23. Qd4 {[%clk 0:01:34]}  Qxd4+ {[%clk 0:02:13]} 24. cxd4 {[%clk 0:01:34]}  Rf4 {[%clk 0:02:04]} 25. Rd1 {[%clk 0:01:31]}  Be2 {[%clk 0:02:01]} 26. g3 {[%clk 0:01:32]}  Rf3 {[%clk 0:01:40]} 27. Rd2 {[%clk 0:01:32]}  Bb5 {[%clk 0:01:38]} 28. Nb7 {[%clk 0:01:19]}  Ra3 {[%clk 0:01:27]} 29. Nc5 {[%clk 0:01:12]}  d6 {[%clk 0:01:14]} 30. Nxe6 {[%clk 0:00:55]}  Bc4 {[%clk 0:01:14]} 31. Nd8 {[%clk 0:00:52]}  Bd5 {[%clk 0:01:02]} 32. Nb7 {[%clk 0:00:50]}  c5 {[%clk 0:01:01]} 33. dxc5 {[%clk 0:00:33]}  Bxb7 {[%clk 0:01:02]} 34. Rxd6 {[%clk 0:00:34]}  Kf8 {[%clk 0:00:43]} 35. c6 {[%clk 0:00:31]}  Ba6 {[%clk 0:00:37]} 36. c7 {[%clk 0:00:26]}  Bb7 {[%clk 0:00:26]} 37. Rb6 {[%clk 0:00:24]}  Bc8 {[%clk 0:00:07]} 38. Rb8 {[%clk 0:00:24]}  Ke7 {[%clk 0:00:07]} 39. Rxc8 {[%clk 0:00:24]}  Kd7 {[%clk 0:00:07]} 40. Rg8 {[%clk 0:00:23]}  Kxc7 {[%clk 0:00:08]} 41. Rxg7+ {[%clk 0:00:24]}  Kd6 {[%clk 0:00:09]} 42. Rxh7 {[%clk 0:00:25]}  Kd5 {[%clk 0:00:10]} 43. Rh4 {[%clk 0:00:25]}  Rxa2 {[%clk 0:00:09]} 44. Rf4 {[%clk 0:00:26]}  Ke5 {[%clk 0:00:09]} 45. h4 {[%clk 0:00:21]}  Rb2 {[%clk 0:00:09]} 46. h5 {[%clk 0:00:20]}  Ra2 {[%clk 0:00:09]} 47. h6 {[%clk 0:00:20]}  Ra6 {[%clk 0:00:10]} 48. h7 {[%clk 0:00:19]}  Rh6 {[%clk 0:00:09]} 49. Rh4 {[%clk 0:00:20]} 1-0


[Site "https://www.chess.com"]